bitfinex/quotes_ETHUSD_20240709
["timestamp","ask_amount","ask_price","bid_price","bid_amount"]
[1720537111431,0.08154625,3066.4,3065.3,5.72585]
[1720537111631,0.08154625,3066.4,3065.3,3.26225]
[1720537112003,0.08154625,3066.4,3065.4,3.0]
[1720537113003,3.24325346,3066.5,3065.4,6.2622]
[1720537113201,0.32432535,3066.4,3065.4,6.2622]
[1720537113948,0.32432535,3066.4,3065.7,3.794]
[1720537114246,7.41,3066.7,3065.7,3.794]
[1720537114247,7.41,3066.7,3066.0,3.26157]
[1720537114448,7.41,3066.7,3065.8,5.7041]
[1720537114613,0.08153174,3066.6,3065.8,5.7041]
[1720537114816,0.83068491,3066.6,3065.7,3.794]
[1720537115035,0.83068491,3066.6,3065.8,3.0]
[1720537115418,0.74915317,3066.6,3065.8,3.0]
[1720537116844,0.74915317,3066.6,3066.0,2.846]
[1720537117007,0.81591532,3066.5,3066.0,2.846]
[1720537117840,0.81591532,3066.5,3065.6,2.846]
[1720537117841,1.21139587,3066.4,3065.6,2.846]
[1720537118050,1.21139587,3066.4,3064.9,0.16479352]
[1720537118051,1.33258469,3066.3,3065.2,2.846]
[1720537118338,1.21152235,3066.2,3065.2,2.846]
[1720537118544,1.12997072,3066.1,3065.2,2.846]
[1720537118751,0.08155166,3066.0,3065.2,2.846]
[1720537119040,1.68005066,3065.9,3065.2,2.846]
[1720537119243,0.25772274,3065.8,3065.2,2.846]
[1720537119540,0.08156251,3065.8,3065.2,2.846]
[1720537120130,0.08156251,3065.8,3064.9,2.27154152]
[1720537120302,0.08156251,3065.8,3064.4,2.846]
[1720537120303,1.76171446,3065.7,3064.4,2.846]
[1720537120502,2.2554,3065.5,3064.4,2.846]
[1720537120741,5.20595615,3065.4,3063.8,2.3722]
[1720537120948,2.98413408,3065.3,3064.1,2.846]
[1720537121147,1.76196685,3065.2,3064.1,2.846]
[1720537121453,1.13037714,3065.1,3064.1,2.846]
[1720537121755,0.63158971,3065.2,3064.1,2.846]
[1720537121756,0.63158936,3065.0,3064.1,2.846]
[1720537122053,0.55,3064.9,3064.1,2.846]
[1720537122414,0.55,3065.0,3064.1,2.846]
[1720537122618,0.55,3065.0,3063.8,6.1722]
[1720537122959,0.796,3064.9,3063.9,6.2638]
[1720537123455,0.796,3064.9,3063.9,3.0]
[1720537123456,0.0815894,3064.8,3063.9,3.0]
[1720537123816,0.0815894,3064.8,3063.8,3.85]
[1720537123817,2.2957,3064.7,3063.8,0.05]
[1720537124055,0.86933103,3064.6,3063.8,0.05]
[1720537124217,7.41,3064.5,3063.8,0.05]
[1720537124417,0.08160888,3064.4,3063.8,0.05]
[1720537124615,0.63160888,3064.4,3063.8,0.05]
[1720537125533,3.63160888,3064.4,3063.8,0.05]
[1720537125744,2.2957,3064.2,3063.8,0.05]
[1720537125957,0.63161396,3064.1,3063.8,0.05]
[1720537127748,0.55,3064.1,3063.8,0.05]
[1720537128352,2.2957,3064.2,3063.8,0.05]
[1720537128938,1.44856089,3064.3,3063.8,0.05]
[1720537129142,0.52646201,3064.2,3063.8,0.05]
[1720537129853,0.55,3064.1,3063.8,0.05]
[1720537130260,0.44485609,3064.2,3063.8,0.05]
[1720537130462,1.44856089,3064.3,3063.8,0.05]
[1720537133043,0.08160101,3064.2,3063.8,0.05]
[1720537133549,1.44856089,3064.3,3063.8,0.05]
[1720537134152,26.88,3064.5,3063.8,0.05]
[1720537134882,7.41,3064.5,3063.8,0.05]
[1720537135085,7.41,3064.5,3063.9,5.67204]
[1720537135392,7.41,3064.5,3063.9,5.67201]
[1720537135673,7.41,3064.5,3064.1,3.8]
[1720537135881,8.151,3064.5,3063.8,0.05]
[1720537136099,0.08158778,3064.4,3063.8,0.05]
[1720537136307,0.0815936,3064.4,3063.8,0.05]
[1720537137089,0.55,3064.3,3063.8,0.05]
[1720537137309,1.12410936,3064.3,3063.8,0.05]
[1720537137490,8.151,3064.5,3063.8,0.05]
[1720537137491,7.41,3064.5,3063.8,0.05]
[1720537139510,7.41,3064.5,3063.9,3.26375]
[1720537139679,7.41,3064.5,3064.1,3.8]
[1720537140000,7.41,3064.5,3064.1,7.769972]
[1720537140891,7.41,3064.5,3064.1,7.769872]
[1720537141091,7.41,3064.5,3064.1,4.506372]
[1720537141601,7.41,3064.5,3064.1,3.8]
[1720537143168,7.41,3064.5,3064.1,3.309988]
[1720537143574,7.41,3064.5,3063.8,0.05]
[1720537143792,7.41,3064.5,3063.8,3.05]
[1720537144773,7.41,3064.5,3063.9,3.26373]
[1720537144979,7.41,3064.5,3064.0,0.631373]
[1720537145176,7.41,3064.5,3063.8,3.05]
[1720537145484,7.41,3064.5,3063.8,6.31391]
[1720537145884,7.41,3064.5,3063.8,3.05]
[1720537146086,7.41,3064.5,3063.8,0.05]
[1720537146973,5.7695,3064.3,3063.8,0.05]
[1720537147205,4.02172522,3064.2,3063.8,0.05]
[1720537147379,0.55,3064.1,3063.8,0.05]
[1720537147611,1.21249497,3064.0,3063.8,0.05]
[1720537147816,9.09087587,3063.9,3063.8,0.05]
[1720537148714,8.54087587,3063.9,3063.8,0.05]
[1720537148884,8.81408759,3063.9,3063.8,0.05]
[1720537149080,9.94498453,3063.9,3063.8,0.05]
[1720537149484,0.85408759,3063.9,3063.8,0.05]
[1720537149695,16.09010898,3064.2,3063.8,0.05]
[1720537149908,13.09010898,3064.2,3063.8,0.05]
[1720537150107,12.15,3064.2,3063.8,0.05]
[1720537151884,4.1307138,3064.1,3063.8,0.05]
[1720537152206,3.63161298,3064.1,3063.8,0.05]
[1720537152528,1.13084333,3064.0,3063.8,0.05]
[1720537152839,3.0,3064.1,3063.8,0.05]
[1720537153011,0.355,3064.0,3063.8,0.05]
[1720537153210,7.41,3064.3,3063.8,0.05]
[1720537154422,0.08160131,3064.2,3063.8,0.05]
[1720537154598,4.76230861,3064.2,3063.8,0.05]
[1720537154800,1.1307073,3064.1,3063.8,0.05]
[1720537155012,1.22091506,3064.0,3063.8,0.05]
[1720537155287,1.1307073,3063.9,3063.8,0.05]
[1720537155588,4.76233232,3063.9,3063.8,0.05]
[1720537155794,15.61633232,3063.9,3063.8,0.05]
[1720537156442,15.61673536,3063.9,3063.8,0.05]
[1720537156593,17.48318906,3063.9,3063.8,0.05]
[1720537156991,17.48320614,3063.9,3063.8,0.05]
[1720537157227,17.48320614,3063.9,3061.8,2.2745]
[1720537157228,3.444,3063.7,3061.8,2.2745]
[1720537157528,2.3064,3063.2,3061.8,2.2745]
[1720537157686,2.3064,3063.2,3061.8,2.50195]
[1720537157687,1.13112742,3063.1,3061.8,2.50195]
[1720537157891,0.08163884,3063.0,3061.8,2.50195]
[1720537158140,1.13112742,3062.9,3061.8,2.2745]
[1720537158287,0.55,3062.8,3061.8,2.2745]
[1720537158508,0.08164707,3062.7,3061.8,2.2745]
[1720537158706,0.55,3062.6,3061.3,3.803]
[1720537159017,0.08165397,3062.5,3061.4,3.3803]
[1720537159405,0.63165395,3062.6,3061.4,3.3803]
[1720537159612,3.0,3062.9,3061.5,0.96673]
[1720537159933,3.0,3062.9,3061.8,3.803]
[1720537160537,7.41,3063.0,3061.9,2.3261]
[1720537160737,7.41,3063.0,3062.0,0.61291]
[1720537160938,7.41,3063.0,3062.3,3.803]
[1720537161142,0.05687396,3064.0,3061.9,2.3261]
[1720537161143,7.46687396,3064.0,3062.9,2.3689]
[1720537161320,21.8785,3064.4,3062.9,2.3689]
[1720537161512,4.37666149,3064.3,3062.9,2.85018642]
[1720537161700,3.32736364,3064.3,3062.9,2.85018642]
[1720537161905,3.24575212,3064.3,3062.9,2.85018642]
[1720537162144,0.64186862,3064.2,3063.0,3.66531864]
[1720537162314,0.08161042,3064.7,3063.0,3.66531864]
[1720537162514,0.08161042,3064.7,3063.3,3.803]
[1720537162734,0.35256104,3064.6,3063.3,3.803]
[1720537163450,0.08160268,3064.5,3063.0,3.66531864]
[1720537163605,0.08160268,3064.5,3062.9,2.3689]
[1720537164042,4.57485601,3064.4,3062.9,2.3689]
[1720537164249,3.63161654,3064.3,3062.9,2.3689]
[1720537164406,0.08161654,3064.2,3062.9,2.3689]
[1720537164602,0.91316165,3064.1,3062.9,2.3689]
[1720537164809,0.08161652,3064.0,3062.9,2.3689]
[1720537165133,0.55,3063.9,3062.9,2.3689]
[1720537165450,0.55,3063.9,3062.3,3.803]
[1720537165451,3.52561653,3063.8,3062.3,3.803]
[1720537165632,3.0,3063.7,3062.3,3.803]
[1720537165948,0.55,3063.6,3062.3,3.803]
[1720537166152,0.63163363,3063.6,3062.3,3.803]
[1720537166311,0.63163363,3063.6,3062.3,4.41827]
[1720537166710,0.63163363,3063.6,3062.2,2.3497]
[1720537167045,7.41,3063.5,3062.2,2.3497]
[1720537167342,0.63163352,3063.4,3062.2,2.3497]
[1720537167714,0.63163352,3063.4,3061.8,3.803]
[1720537167715,7.07563352,3063.4,3061.8,3.803]
[1720537168041,0.80416335,3063.3,3061.8,3.803]
[1720537168242,0.63164201,3063.2,3061.8,3.803]
[1720537168453,3.63164201,3063.2,3061.8,3.803]
[1720537168662,3.444,3063.0,3061.3,3.803]
[1720537168809,7.41,3062.7,3061.2,2.259]
[1720537169005,0.82265373,3062.6,3061.3,0.2259]
[1720537169211,3.994,3062.5,3060.7,2.259]
[1720537169467,3.994,3062.5,3060.1,0.1121393]
[1720537169468,3.444,3062.0,3060.1,2.38368082]
[1720537169750,7.41,3061.6,3060.1,0.1121393]
[1720537169958,7.41,3061.6,3060.3,3.803]
[1720537170113,3.741,3061.5,3060.4,0.707075]
[1720537170419,0.55,3061.4,3060.1,0.1121393]
[1720537170943,2.274,3061.2,3060.1,0.1121393]
[1720537171139,4.31127043,3061.1,3060.1,0.1121393]
[1720537171507,3.0,3061.0,3060.1,0.1121393]
[1720537171728,10.854,3060.8,3060.1,0.1121393]
[1720537171949,0.08171934,3060.7,3060.1,0.1121393]
[1720537172110,3.444,3060.6,3060.1,0.1121393]
[1720537172308,4.78329015,3060.5,3060.1,0.1121393]
[1720537172520,5.8525,3060.2,3060.1,0.1121393]
[1720537172723,27.3745,3060.2,3059.0,0.003613]
[1720537172947,8.91,3059.6,3059.0,0.003613]
[1720537173132,3.55,3059.5,3059.0,0.003613]
[1720537174180,3.55,3059.5,3057.1,3.803]
[1720537174181,1.5,3058.7,3057.1,3.803]
[1720537174390,10.96,3059.5,3057.1,3.803]
[1720537174391,0.55,3058.6,3057.1,0.39151393]
[1720537174568,0.34043647,3059.4,3057.0,3.9151393]
[1720537174806,0.47079683,3059.3,3057.6,3.803]
[1720537174958,0.63175245,3059.2,3057.6,3.803]
[1720537175284,0.63175245,3059.2,3057.0,0.1121393]
[1720537175285,2.40146022,3059.1,3057.0,0.1121393]
[1720537175491,0.55,3059.0,3057.2,5.72994]
[1720537175788,0.63176682,3059.0,3057.5,3.27054]
[1720537175986,0.08174889,3058.9,3057.7,3.803]
[1720537176171,0.08174889,3059.8,3057.7,3.803]
[1720537176487,0.63174322,3059.7,3058.0,3.803]
[1720537177000,0.63174322,3059.7,3057.9,3.27017]
[1720537177149,0.63174322,3059.7,3057.7,3.0]
[1720537177350,1.5,3059.2,3057.0,0.1121393]
[1720537177553,1.1261732,3059.1,3057.0,0.1121393]
[1720537177994,4.1261732,3059.1,3057.0,0.1121393]
[1720537178347,4.944,3059.0,3057.0,0.1121393]
[1720537178650,3.444,3058.6,3057.0,0.1121393]
[1720537178855,2.4049,3057.2,3057.0,0.1121393]
[1720537179047,2.4049,3057.2,3054.6,3.27373]
[1720537179048,0.63182165,3057.1,3054.6,3.27373]
[1720537179252,0.63182165,3057.1,3052.3,2.03071538]
[1720537179253,1.5,3055.0,3052.3,2.03071538]
[1720537179480,24.61550289,3057.0,3051.8,1.01535769]
[1720537179481,1.5,3053.2,3051.8,1.01535769]
[1720537179702,3.26,3053.8,3050.9,0.1121393]
[1720537179703,1.5,3052.3,3050.9,0.1121393]
[1720537179852,0.08195072,3052.2,3050.9,0.40321119]
[1720537180208,3.08193728,3053.6,3050.9,3.27763]
[1720537180502,3.08193728,3053.6,3050.5,2.3835]
[1720537180503,1.5,3053.4,3050.8,4.006]
[1720537180663,1.5,3053.4,3049.6,3.27907]
[1720537180664,2.2928,3052.7,3049.6,4.006]
[1720537180852,2.2928,3052.7,3048.6,1.5]
[1720537180853,0.08195158,3052.6,3051.0,4.006]
[1720537181059,2.2802,3054.5,3051.1,3.67802]
[1720537181423,2.2802,3054.3,3050.6,2.3074]
[1720537181564,0.08192654,3054.2,3050.6,2.3074]
[1720537181768,0.05693591,3054.2,3052.2,2.3074]
[1720537181965,0.05693591,3054.2,3053.6,3.27482]
[1720537182263,0.05693591,3054.2,3052.5,2.27154152]
[1720537182264,0.08185854,3055.4,3053.1,3.87241884]
[1720537182577,2.2928,3056.8,3054.0,3.27435]
[1720537182578,0.34026091,3055.5,3054.0,3.27435]
[1720537182782,0.34026091,3055.5,3054.3,3.27403]
[1720537182999,0.34026091,3055.5,3054.4,3.327403]
[1720537183183,0.08183135,3056.7,3054.4,3.327403]
[1720537183184,0.08183135,3056.7,3054.5,3.0]
[1720537183377,0.08183135,3056.7,3054.6,3.27374]
[1720537183808,0.08183135,3056.7,3054.7,6.27363]
[1720537184108,0.08183135,3056.7,3053.6,3.27477]
[1720537184109,1.5,3056.3,3053.6,3.27477]
[1720537184304,0.23746314,3056.6,3053.3,6.4654]
[1720537184305,0.08185024,3056.2,3054.1,3.27418]
[1720537184466,0.08185024,3056.2,3053.4,3.27498]
[1720537184467,0.08185024,3056.2,3054.3,3.27406]
[1720537184669,0.08185024,3056.2,3053.9,4.006]
[1720537184869,0.08185024,3056.2,3052.9,3.27555]
[1720537184870,3.444,3055.5,3052.7,2.4594]
[1720537185096,1.5,3055.6,3052.7,2.4594]
[1720537185097,0.08187287,3055.4,3052.7,2.4594]
[1720537185311,0.08187287,3055.4,3053.2,3.27523]
[1720537185608,0.08186611,3055.3,3053.1,3.27527]
[1720537185811,0.08186611,3055.3,3053.2,0.327527]
[1720537186013,0.545,3055.2,3053.3,3.27509]
[1720537186167,0.545,3055.2,3053.1,3.27535]
[1720537186168,0.08186255,3055.1,3053.4,3.27501]
[1720537186371,0.0818623,3055.8,3053.2,0.327535]
[1720537186621,0.08184723,3055.8,3053.6,4.006]
[1720537186917,0.08184723,3055.8,3047.7,2.4781]
[1720537186918,1.5,3049.4,3047.7,2.4781]
[1720537187075,0.0366,3050.9,3047.7,2.4781]
[1720537187076,2.58538598,3049.7,3047.7,2.4781]
[1720537187416,0.0366,3050.9,3048.4,3.28]
[1720537187570,0.0366,3050.9,3050.1,2.2968]
[1720537187770,0.0366,3050.9,3050.7,3.27789]
[1720537187972,0.0366,3050.9,3050.8,2.2968]
[1720537188268,1.64005104,3056.0,3050.5,4.78]
[1720537188269,3.27316,3055.2,3051.5,1.5]
[1720537188499,3.0,3056.8,3051.5,1.5]
[1720537188500,3.27295,3055.4,3051.9,3.27662]
[1720537188708,4.34731795,3055.7,3052.0,2.730262]
[1720537188709,3.27377,3054.6,3052.0,2.730262]
[1720537188874,4.006,3055.1,3052.2,3.27629]
[1720537189077,4.006,3055.1,3052.2,3.27631]
[1720537189078,3.27366,3054.7,3052.2,3.27631]
[1720537189317,50.5,3054.6,3052.5,3.27594]
[1720537189468,3.27344,3054.9,3052.1,0.24026]
[1720537189469,50.5,3054.8,3052.1,0.24026]
[1720537189804,50.5,3054.8,3053.8,2.4707]
[1720537189805,49.05250915,3054.8,3053.8,2.4707]
[1720537190015,0.43475514,3055.0,3053.8,2.4707]
[1720537190016,48.554512,3054.7,3053.8,2.4707]
[1720537190318,48.554512,3054.6,3053.8,2.4707]
[1720537190614,3.58067472,3055.8,3053.8,2.4707]
[1720537190615,48.554512,3054.5,3053.8,2.4707]
[1720537190769,5.2431,3057.7,3053.8,2.4707]
[1720537190770,48.554512,3054.4,3053.8,2.4707]
[1720537190975,3.27219,3056.1,3053.8,2.4707]
[1720537191176,48.554512,3056.3,3053.9,0.574537]
[1720537191177,0.327219,3056.0,3053.9,0.574537]
[1720537191429,3.444,3057.0,3054.0,3.27437]
[1720537191713,3.444,3057.0,3053.9,3.0]
[1720537191714,3.27196,3056.3,3054.1,3.0]
[1720537191886,3.27196,3056.3,3053.9,6.27448]
[1720537191887,0.0568917,3056.7,3054.0,2.54807]
[1720537192085,0.0568917,3056.7,3054.1,6.27423]
[1720537192086,0.34135767,3056.3,3054.1,6.27423]
[1720537192499,3.2727,3055.6,3053.8,2.4707]
[1720537192714,0.34135767,3056.3,3053.8,2.4707]
[1720537192715,3.60006,3055.5,3053.8,2.4707]
[1720537193018,3.27279,3055.5,3053.8,2.4707]
[1720537193212,3.27322,3055.1,3053.8,2.4707]
[1720537193445,3.771322,3055.0,3053.8,2.4707]
[1720537193739,3.444,3055.0,3052.8,3.27565]
[1720537194047,3.82343,3054.9,3052.8,3.27565]
[1720537194251,3.27279,3055.5,3053.2,3.27524]
[1720537194455,0.55,3055.4,3052.6,2.3454]
[1720537194606,0.55,3055.4,3052.7,0.23454]
[1720537194940,0.55,3055.4,3052.7,0.18454]
[1720537194941,3.444,3055.3,3052.7,0.18454]
[1720537195151,3.444,3054.6,3052.7,0.18454]
[1720537195304,0.8944,3054.5,3052.7,0.18454]
[1720537195501,0.8944,3054.5,3052.6,2.3454]
[1720537195502,3.27431,3054.1,3052.6,2.3454]
[1720537195705,3.27443,3054.0,3052.6,2.3454]
[1720537196018,3.27455,3053.9,3052.6,2.3454]
[1720537196202,0.327455,3053.8,3052.6,2.3454]
[1720537196410,0.55,3054.5,3052.6,2.3454]
[1720537196721,7.27879,3055.5,3052.6,2.3454]
[1720537196916,3.27374,3054.7,3052.7,0.23454]
[1720537197143,3.444,3054.0,3052.6,2.3454]
[1720537197301,0.3444,3053.9,3052.6,2.3454]
[1720537197505,3.444,3053.6,3051.8,1.701]
[1720537197703,3.444,3053.6,3050.8,4.006]
[1720537197704,3.444,3053.6,3051.7,2.4422]
[1720537197926,4.006,3054.5,3051.7,2.4422]
[1720537198161,0.55,3053.5,3051.7,3.014125]
[1720537198307,3.8446,3054.4,3051.7,3.014125]
[1720537198308,3.8446,3054.4,3051.7,6.290965]
[1720537198687,3.8446,3054.4,3051.7,5.71904]
[1720537198688,3.444,3054.2,3051.7,5.71904]
[1720537198818,3.444,3054.0,3052.0,3.27653]
[1720537199163,0.55,3053.9,3052.1,3.327653]
[1720537199440,0.55,3053.9,3051.7,2.4422]
[1720537199441,3.444,3053.8,3051.7,2.4422]
[1720537199762,0.9494,3053.7,3051.8,3.52087]
[1720537199907,0.9494,3053.7,3051.9,3.27663]
[1720537200102,0.9494,3053.7,3051.8,0.24422]
[1720537200103,0.55,3053.7,3051.8,3.52095]
[1720537200308,0.55,3053.9,3052.0,3.2765]
[1720537200548,0.3271,3055.0,3052.3,3.27618]
[1720537200703,0.3271,3055.0,3052.7,3.27577]
[1720537200907,0.3271,3055.0,3052.8,0.327577]
[1720537201102,0.3271,3055.0,3052.3,3.0]
[1720537201308,3.444,3054.9,3052.0,3.27644]
[1720537201507,3.444,3054.9,3051.9,0.596315]
[1720537201508,3.444,3054.9,3052.1,3.0]
[1720537201760,4.916,3056.0,3052.1,3.0]
[1720537201761,0.37711,3054.8,3052.8,3.27563]
[1720537202048,4.006,3055.6,3052.4,3.2761]
[1720537202232,4.006,3055.6,3052.2,3.0]
[1720537202233,3.444,3055.2,3052.2,3.0]
[1720537202438,0.13450794,3056.6,3053.4,3.27494]
[1720537202439,4.44073577,3056.2,3053.4,3.27494]
[1720537202623,0.03939045,3056.1,3053.5,2.3697]
[1720537202958,2.00139045,3056.1,3053.5,8.64458]
[1720537203108,3.444,3055.9,3053.6,1.191961]
[1720537203312,3.444,3055.9,3054.0,3.27439]
[1720537203533,3.444,3055.9,3053.6,3.0]
[1720537203534,0.64421262,3056.0,3054.5,3.27384]
[1720537203743,2.26817601,3059.4,3053.6,3.0]
[1720537203744,2.2891,3057.3,3054.3,3.27405]
[1720537203954,2.2891,3057.3,3054.4,3.27396]
[1720537204158,2.2891,3057.3,3054.5,3.0]
[1720537204448,0.0569709,3056.8,3054.9,3.27332]
[1720537204662,3.444,3057.8,3055.0,3.327332]
[1720537204867,3.444,3057.8,3054.2,2.2668]
[1720537204868,0.05696657,3057.2,3054.3,3.0]
[1720537205155,0.3271,3057.7,3055.3,3.27299]
[1720537205365,0.3271,3057.7,3054.3,0.22668]
[1720537205366,3.444,3057.3,3054.3,0.22668]
[1720537205527,0.05696935,3057.1,3055.1,3.27318]
[1720537205734,0.34028503,3057.8,3055.1,3.27318]
[1720537205735,0.3271,3057.7,3055.1,3.27318]
[1720537205924,0.34028503,3057.8,3055.5,3.27275]
[1720537205925,0.05697109,3057.3,3055.5,3.27275]
[1720537206132,0.05697109,3057.3,3055.3,2.3502]
[1720537206667,0.05697109,3057.3,3055.3,5.62319]
[1720537206815,0.05697109,3057.3,3055.3,2.3502]
[1720537207327,0.05697109,3057.3,3054.5,2.283]
[1720537207328,5.406,3057.0,3054.5,2.283]
[1720537207647,4.006,3056.6,3054.1,3.27428]
[1720537207847,4.006,3056.6,3053.9,3.27448]
[1720537207848,1.962,3056.5,3053.7,2.283]
[1720537208154,0.55,3056.4,3053.9,3.2744]
[1720537208455,0.55,3056.4,3053.8,0.2283]
[1720537208861,0.55,3056.4,3053.8,3.50283]
[1720537209046,2.512,3056.4,3053.7,2.283]
[1720537209370,2.512,3056.4,3053.7,5.5577]
[1720537209516,0.55,3056.4,3053.7,2.283]
[1720537209717,0.55,3056.5,3054.3,3.27405]
[1720537209982,1.962,3057.5,3054.5,3.27377]
[1720537210256,1.962,3057.5,3054.8,3.27346]
[1720537210458,1.962,3057.5,3054.1,3.27419]
[1720537210459,5.406,3057.5,3054.9,3.0]
[1720537210768,5.406,3057.5,3054.4,3.27394]
[1720537210933,5.406,3057.5,3054.6,3.27373]
[1720537210934,1.962,3057.2,3054.6,3.27373]
[1720537211132,1.962,3057.2,3054.7,3.0]
[1720537211450,0.6032682,3057.3,3054.5,0.327394]
[1720537211451,5.406,3057.0,3054.5,0.327394]
[1720537211621,0.6032682,3057.3,3054.4,3.0]
[1720537211622,6.0092682,3057.3,3054.4,3.0]
[1720537211816,6.0092682,3057.3,3054.5,0.3]
[1720537211817,5.406,3057.1,3054.5,0.3]
[1720537212059,5.406,3056.9,3054.3,3.0]
[1720537212360,5.406,3056.9,3054.0,3.27438]
[1720537212544,1.962,3056.7,3054.1,6.601718]
[1720537212861,0.5406,3056.8,3054.6,3.27371]
[1720537213066,3.462,3057.2,3054.7,3.27364]
[1720537213232,3.462,3057.1,3054.1,3.327438]
[1720537213421,1.962,3056.7,3054.1,0.327438]
[1720537213624,1.4801759,3057.0,3054.4,3.27393]
[1720537213625,0.3462,3057.0,3054.4,3.27393]
[1720537213932,3.444,3056.8,3054.5,0.327393]
[1720537214130,5.406,3056.8,3053.9,3.2744]
[1720537214329,3.444,3055.9,3053.7,2.283]
[1720537214559,3.444,3055.7,3053.7,2.283]
[1720537214764,0.55,3055.8,3053.7,5.55767]
[1720537214966,0.3462,3057.0,3053.7,2.283]
[1720537215268,1.13400859,3056.9,3054.0,3.27435]
[1720537215564,1.5,3056.6,3054.2,3.27409]
[1720537215770,0.3462,3057.0,3053.7,2.283]
[1720537215771,1.5,3056.4,3053.7,2.283]
[1720537215933,1.962,3056.7,3053.7,2.283]
[1720537216274,1.13410597,3056.6,3054.3,3.27405]
[1720537216450,0.18462,3056.9,3053.8,0.2283]
[1720537216451,0.18462,3056.9,3054.7,3.27361]
[1720537216762,4.006,3057.6,3054.9,3.27335]
[1720537216763,0.34024663,3057.1,3054.9,3.27335]
[1720537216917,3.444,3057.0,3054.7,3.27361]
[1720537217122,3.444,3057.0,3053.9,0.25113]
[1720537217123,0.08181179,3056.9,3053.9,0.25113]
[1720537217333,3.444,3056.7,3054.3,3.27406]
[1720537217584,3.444,3056.5,3054.3,3.601466]
[1720537217878,3.444,3056.3,3053.7,2.283]
[1720537218020,5.406,3056.1,3053.7,2.283]
[1720537218219,0.3271,3056.3,3053.7,2.283]
[1720537218220,3.444,3055.9,3053.7,2.283]
[1720537218563,3.444,3055.9,3051.8,4.77672]
[1720537218564,3.444,3055.3,3052.9,2.2993]
[1720537218734,3.444,3055.3,3051.2,7.94475762]
[1720537218735,3.394,3054.7,3052.1,2.2993]
[1720537218938,3.344,3054.5,3052.1,2.2993]
[1720537219138,0.08188768,3054.4,3052.1,2.2993]
[1720537219326,0.5968,3054.7,3051.4,3.27713]
[1720537219327,9.312,3054.2,3051.4,2.4263]
[1720537219668,9.312,3054.2,3050.3,1.7009]
[1720537219669,9.312,3053.6,3053.5,1e-05]
[1720537219849,10.4467541,3053.6,3053.5,1e-05]
[1720537220050,10.9967541,3053.6,3050.7,2.3454]
[1720537220253,5.306,3053.0,3050.8,0.562344]
[1720537220577,5.306,3053.0,3050.7,2.3454]
[1720537220578,3.344,3052.8,3050.7,2.3454]
[1720537220865,3.344,3052.8,3050.3,1.7009]
[1720537221065,3.344,3052.6,3050.4,0.17009]
[1720537221238,3.344,3052.4,3050.4,0.17009]
[1720537221444,5.306,3052.4,3050.0,2.2723]
[1720537221651,5.306,3052.2,3049.4,3.27931]
[1720537221825,0.55,3052.3,3048.4,2.2723]
[1720537221826,3.344,3051.4,3048.4,2.2723]
[1720537222154,3.344,3051.2,3048.4,2.2723]
[1720537222485,0.5306,3052.1,3048.9,2.4911]
[1720537222627,4.006,3053.0,3048.9,2.4911]
[1720537222628,0.0819671,3051.7,3049.3,3.27935]
[1720537222826,0.0819671,3051.7,3048.9,2.4911]
[1720537223036,0.55,3051.6,3049.0,0.64971]
[1720537223230,3.52596194,3051.5,3049.0,0.64971]
[1720537223462,3.444,3051.1,3048.2,2.4855]
[1720537223664,4.006,3051.2,3048.3,0.24855]
[1720537223665,3.444,3050.9,3048.3,0.24855]
[1720537223841,1.962,3050.7,3048.3,0.24855]
[1720537224044,2.85339553,3050.6,3047.2,5.76719]
[1720537224271,2.85339553,3050.6,3047.3,0.576719]
[1720537224272,1.962,3050.4,3047.3,0.576719]
[1720537224440,0.08202179,3050.3,3047.3,0.576719]
[1720537224772,0.08199332,3050.2,3046.4,2.2807]
[1720537225072,0.08199332,3050.2,3046.6,3.28232]
[1720537225073,1.962,3049.9,3046.6,3.28232]
[1720537225380,1.962,3049.3,3046.7,0.328232]
[1720537225534,0.08203468,3049.2,3046.8,3.28205]
[1720537225733,0.55,3049.1,3046.9,0.328205]
[1720537225933,0.08203195,3049.0,3046.6,3.28231]
[1720537226231,0.63202979,3048.9,3044.8,4.27474315]
[1720537226427,4.944,3048.2,3044.9,3.28416]
[1720537226674,4.944,3048.2,3044.8,2.95916115]
[1720537226675,0.08206516,3048.1,3044.8,2.2807]
[1720537226884,0.08206516,3048.1,3044.9,3.28408]
[1720537227030,1.962,3047.9,3044.8,0.3402384]
[1720537227231,4.08809278,3047.8,3044.1,3.28493]
[1720537227469,0.08208724,3047.7,3045.2,5.78363]
[1720537227686,0.55,3048.0,3046.2,3.28273]
[1720537227872,0.05700724,3048.9,3046.4,2.76077757]
[1720537228081,0.05700724,3048.9,3047.3,3.28159]
[1720537228278,0.08201679,3049.5,3046.8,3.28212]
[1720537228445,0.08201679,3049.5,3047.0,3.28182]
[1720537228643,0.08201679,3049.5,3047.1,3.0]
[1720537228845,0.08201679,3049.5,3047.1,6.28171]
[1720537229046,0.08201679,3049.5,3047.6,3.28125]
[1720537229250,0.08201679,3049.5,3047.7,0.328125]
[1720537229551,0.08201679,3049.5,3046.6,0.60431276]
[1720537229956,0.08203453,3049.4,3046.8,3.28203]